fUST/lending_fUST_20241011
["ID","MTS","AMOUNT","RATE_DAILY","PERIOD"]
[340128742,1728658239412,-170.944197,0.00040283,2]
[340128743,1728658239421,-160.527516,0.00040295,2]
[340128744,1728658239430,-170.944197,0.00040303,2]
[340128745,1728658239439,-170.944197,0.00040323,2]
[340128746,1728658239451,-160.527516,0.00040409,2]
[340128747,1728658239461,-160.527516,0.00040523,2]
[340128748,1728658239471,-160.527516,0.00040637,2]
[340128749,1728658239482,-160.527516,0.00040751,2]
[340128750,1728658239490,-160.527516,0.00040865,2]
[340128751,1728658239500,-160.527516,0.00040979,2]
[340128752,1728658239509,-160.527516,0.00041093,2]
[340128753,1728658239519,-160.527516,0.00041207,2]
[340128754,1728658239530,-160.527516,0.00041321,2]
[340128755,1728658239541,-160.527516,0.00041435,2]
[340128756,1728658239550,-200.0,0.00044658,2]
[340128757,1728658239559,-380.0,0.00044658,2]
[340128758,1728658239568,-395.67,0.00044918,30]
[340128759,1728658239578,-329.72,0.00044918,30]
[340128760,1728658239587,-274.77,0.00044918,30]
[340128761,1728658239599,-228.97,0.00044918,30]
[340128762,1728658239609,-190.81,0.00044918,30]
[340128763,1728658239618,-159.01,0.00044918,30]
[340128764,1728658239628,-795.08,0.00044918,30]
[340128765,1728658239638,-2021.39453926,0.00044928,6]
[340128766,1728658239648,-23851.0014124,0.00044928,6]
[340128767,1728658239657,-254.09,0.00044928,30]
[340128768,1728658239666,-683.71,0.00044928,30]
[340128769,1728658239675,-569.76,0.00044928,30]
[340128770,1728658239684,-474.8,0.00044928,30]
[340128771,1728658239694,-40657.95133101,0.00044938,120]
[340128772,1728658239705,-151.0,0.00044938,120]
[340128773,1728658239716,-151.0,0.00044938,120]
[340128774,1728658239728,-151.0,0.00044938,120]
[340128775,1728658239738,-151.0,0.00044938,120]
[340128776,1728658239747,-249.222107,0.00044938,120]
[340128777,1728658239757,-249.222107,0.00044938,120]
[340128778,1728658239766,-151.0,0.00044938,120]
[340128779,1728658239776,-151.0,0.00044938,120]
[340128780,1728658239785,-252.269786,0.00044938,120]
[340128781,1728658239794,-162.844359,0.00044938,120]
[340128782,1728658239805,-5000.0,0.00045,50]
[340128783,1728658239815,-2200.0,0.00045,30]
[340128784,1728658239825,-193.55572777,0.00045472,2]
[340128785,1728658239836,-227.29698791,0.00045572,2]
[340128786,1728658239845,-1800.0,0.000458,2]
[340128787,1728658239856,-2000.0,0.000459,120]
[340128788,1728658239866,-16095.21244477,0.00046,60]
[340128789,1728658239875,-5000.0,0.00046,55]
[340128790,1728658239885,-151.0,0.00046,120]
[340128791,1728658239894,-249.222107,0.00046,120]
[340128792,1728658239906,-249.222107,0.00046,120]
[340128793,1728658239915,-151.0,0.00046,120]
[340128794,1728658239925,-151.0,0.00046,120]
[340128795,1728658239935,-1000.0,0.00046224,30]
[340128796,1728658239946,-436.142,0.00046224,30]
[340128797,1728658239957,-566.24961085,0.00047999,120]
[340128798,1728658239966,-429.81,0.00048,120]
[340128799,1728658239976,-153.0,0.00048017,120]
[340128800,1728658239986,-153.0,0.00048017,120]
[340128801,1728658239996,-153.0,0.00048017,120]
[340128802,1728658240005,-153.0,0.00048017,120]
[340128803,1728658240015,-153.0,0.00048017,120]
[340128804,1728658240025,-153.0,0.00048018,120]
[340128805,1728658240035,-153.0,0.00048018,120]
[340128806,1728658240044,-153.0,0.00048018,120]
[340128807,1728658240057,-153.0,0.00048018,120]
[340128808,1728658240066,-153.0,0.00048034,120]
[340128809,1728658240076,-2021.39453926,0.0004809,7]
[340128810,1728658240086,-23851.0014124,0.0004809,7]
[340128811,1728658240096,-249.222107,0.0004809,120]
[340128812,1728658240108,-249.222107,0.0004809,120]
[340128813,1728658240119,-196.211188,0.0004809,120]
[340128814,1728658240131,-239.061746,0.0004809,120]
[340128815,1728658240143,-2305.59687564,0.000481,120]
[340128816,1728658240155,-1000.0,0.000489,120]
[340128817,1728658240164,-2000.0,0.000489,120]
[340128818,1728658240174,-151.0,0.0004899,120]
[340128819,1728658240184,-156.801226,0.0004899,120]
[340128820,1728658240194,-153.191282,0.0004899,120]
[340128821,1728658240203,-275.63715,0.0004899,120]
[340128822,1728658240213,-151.0,0.0004899,120]
[340128823,1728658240224,-275.63715,0.0004899,120]
[340128824,1728658240239,-212.62481,0.0004899,120]
[340128825,1728658240250,-695.637677,0.0004899,120]
[340128826,1728658240260,-212.62481,0.0004899,120]
[340128827,1728658240271,-695.637677,0.0004899,120]
[340128828,1728658240280,-2021.39453926,0.0004899,7]
[340128830,1728658240290,-151.0,0.0004899,120]
[340128831,1728658240300,-176.292184,0.0004899,120]
[340128832,1728658240311,-23851.0014124,0.0004899,7]
[340128833,1728658240323,-151.0,0.0004899,120]
[340128834,1728658240333,-151.0,0.0004899,120]
[340128835,1728658240342,-173.542322,0.0004899,120]
[340128836,1728658240353,-151.0,0.0004899,120]
[340128837,1728658240362,-151.0,0.0004899,120]
[340128838,1728658240372,-249.222107,0.0004899,120]
[340128839,1728658240382,-249.222107,0.0004899,120]
[340128840,1728658240392,-108638.78258557,0.00048999,30]
[340128873,1728658247256,-774634.36235443,0.00048999,30]
[340128874,1728658247267,-21542.62267308,0.00049,120]
[340128875,1728658247277,-150.0,0.00049,120]
[340128876,1728658247290,-1504.0,0.00049,7]
[340128877,1728658247302,-5268.04,0.00049,120]
[340128878,1728658247314,-1000.0,0.00049,120]
[340128879,1728658247324,-152.746422,0.00049,120]
[340128880,1728658247336,-258.649703,0.00049,120]
[340128881,1728658247348,-258.649703,0.00049,120]
[340128882,1728658247360,-151.0,0.00049,120]
[340128883,1728658247370,-500.050772,0.00049,14]
[340128884,1728658247379,-500.050772,0.00049,14]
[340128885,1728658247389,-151.0,0.00049,120]
[340128886,1728658247399,-156.775567,0.00049,120]
[340128887,1728658247411,-154.472421,0.00049,120]
[340128888,1728658247422,-151.0,0.00049,120]
[340128889,1728658247433,-151.0,0.00049,120]
[340128890,1728658247445,-241.031494,0.00049,120]
[340128891,1728658247455,-151.0,0.00049,120]
[340128892,1728658247466,-275.63715,0.00049,120]
[340128893,1728658247476,-275.63715,0.00049,120]
[340128894,1728658247485,-212.62481,0.00049,120]
[340128895,1728658247494,-695.637677,0.00049,120]
[340128896,1728658247504,-212.62481,0.00049,120]
[340128897,1728658247513,-695.637677,0.00049,120]
[340128898,1728658247525,-151.0,0.00049,120]
[340128899,1728658247535,-242.436572,0.00049,120]
[340128900,1728658247546,-151.0,0.00049,120]
[340128901,1728658247557,-240.620318,0.00049,120]
[340128902,1728658247567,-249.222107,0.00049,120]
[340128903,1728658247578,-249.222107,0.00049,120]
[340128904,1728658247589,-173.342965,0.00049315,120]
[340128905,1728658247601,-5000.0,0.0004932,120]
[340128906,1728658247612,-450.0,0.00049347,10]
[340128907,1728658247623,-503.86315511,0.00049504,10]
[340128908,1728658247634,-380.0,0.00049517,2]
[340128909,1728658247644,-249.222107,0.00049523,120]
[340128910,1728658247654,-249.222107,0.00049523,120]
[340128911,1728658247664,-154.43334356,0.00049576,74]
[340128912,1728658247674,-186.0,0.0004964,120]
[340128913,1728658247684,-275.63715,0.0004964,120]
[340128914,1728658247693,-275.63715,0.0004964,120]
[340128915,1728658247703,-212.62481,0.0004964,120]
[340128916,1728658247713,-695.637677,0.0004964,120]
[340128917,1728658247725,-212.62481,0.0004964,120]
[340128918,1728658247735,-695.637677,0.0004964,120]
[340128919,1728658247745,-151.0,0.0004964,120]
[340128920,1728658247756,-151.0,0.0004964,120]
[340128921,1728658247766,-2021.39453926,0.00049898,7]
[340128922,1728658247776,-23851.0014124,0.00049898,7]
[340128923,1728658247785,-249.222107,0.00049899,120]
[340128924,1728658247795,-249.222107,0.00049899,120]
[340128925,1728658247805,-249.222107,0.00049908,120]
[340128926,1728658247815,-249.222107,0.00049908,120]
[340128927,1728658247827,-40657.95133101,0.00049909,120]
[340128928,1728658247837,-249.222107,0.0004995,120]
[340128929,1728658247846,-249.222107,0.0004995,120]
[340128930,1728658247857,-2021.39453926,0.00049951,7]
[340128931,1728658247867,-23851.0014124,0.00049951,7]
[340128932,1728658247877,-151.0,0.00049961,120]
[340128933,1728658247886,-242.191344,0.00049961,120]
[340128934,1728658247896,-275.63715,0.00049961,120]
[340128935,1728658247908,-275.63715,0.00049961,120]
[340128936,1728658247919,-212.62481,0.00049961,120]
[340128937,1728658247929,-695.637677,0.00049961,120]
[340128938,1728658247939,-212.62481,0.00049961,120]
[340128939,1728658247950,-695.637677,0.00049961,120]
[340128940,1728658247960,-151.0,0.00049961,120]
[340128941,1728658247970,-225.792644,0.00049961,120]
[340128942,1728658247980,-258.649703,0.0004997,120]
[340128943,1728658247990,-258.649703,0.0004997,120]
[340128944,1728658247999,-500.050772,0.0004997,14]
[340128945,1728658248009,-500.050772,0.0004997,14]
[340128946,1728658248019,-500.050772,0.0004997,14]
[340128947,1728658248029,-172.12353,0.0004997,120]
[340128948,1728658248040,-275.63715,0.0004997,120]
[340128949,1728658248053,-275.63715,0.0004997,120]
[340128950,1728658248063,-212.62481,0.0004997,120]
[340128951,1728658248073,-695.637677,0.0004997,120]
[340128952,1728658248083,-212.62481,0.0004997,120]
[340128953,1728658248093,-695.637677,0.0004997,120]
[340128954,1728658248103,-151.0,0.0004997,120]
[340128955,1728658248113,-151.0,0.0004998,7]
[340128956,1728658248122,-258.649703,0.0004998,120]
[340128957,1728658248132,-258.649703,0.0004998,120]
[340128958,1728658248239,-500.050772,0.0004998,14]
[340128959,1728658248250,-500.050772,0.0004998,14]
[340128960,1728658248261,-249.222107,0.0004998,120]
[340128961,1728658248272,-249.222107,0.0004998,120]
[340128962,1728658248283,-2021.39453926,0.0004998,7]
[340128963,1728658248295,-23851.0014124,0.0004998,7]
[340128964,1728658248305,-5000.0,0.0004999,51]
[340128965,1728658248316,-258.649703,0.0004999,120]
[340128966,1728658248326,-258.649703,0.0004999,120]
[340128967,1728658248336,-500.050772,0.0004999,14]
[340128968,1728658248346,-500.050772,0.0004999,14]
[340128969,1728658248356,-275.63715,0.0004999,120]
[340128970,1728658248366,-275.63715,0.0004999,120]
[340128971,1728658248376,-212.62481,0.0004999,120]
[340128972,1728658248386,-695.637677,0.0004999,120]
[340128973,1728658248396,-212.62481,0.0004999,120]
[340128974,1728658248408,-4042.78907852,0.0004999,7]
[340128975,1728658248419,-695.637677,0.0004999,120]
[340128976,1728658248428,-151.0,0.0004999,120]
[340128977,1728658248439,-47702.0028247,0.0004999,7]
[340128978,1728658248448,-2000.0,0.0005,50]
[340128979,1728658248458,-1000.0,0.0005,120]
[340128980,1728658248467,-250.0,0.0005,120]
[340128981,1728658248477,-150.0,0.0005,120]
[340128982,1728658248488,-50000.0,0.0005,30]
[340128983,1728658248498,-300.0,0.0005,120]
[340128984,1728658248508,-161.07262673,0.0005,120]
[340128985,1728658248518,-561.44492576,0.0005,120]
[340128986,1728658248528,-2000.0,0.0005,120]
[340128987,1728658248538,-175.0,0.0005,120]
[340128988,1728658248547,-1000.0,0.0005,120]
[340128989,1728658248557,-150.0,0.0005,30]
[340128990,1728658248567,-151.0,0.0005,120]
[340128991,1728658248576,-258.649703,0.0005,120]
[340128992,1728658248586,-258.649703,0.0005,120]
[340128993,1728658248596,-500.050772,0.0005,14]
[340128994,1728658248606,-500.050772,0.0005,14]
[340128995,1728658248616,-275.63715,0.0005,120]
[340128996,1728658248625,-275.63715,0.0005,120]
[340128997,1728658248634,-212.62481,0.0005,120]
[340128998,1728658248644,-695.637677,0.0005,120]
[340128999,1728658248654,-212.62481,0.0005,120]
[340129000,1728658248666,-695.637677,0.0005,120]
[340129001,1728658248675,-151.0,0.0005,120]
[340129002,1728658248684,-492.34605418,0.00050038,10]
[340129003,1728658248694,-500.0,0.00050038,10]
[340129004,1728658248703,-500.0,0.00050038,7]
[340129005,1728658248712,-500.0,0.00050265,10]
[340129006,1728658248723,-503.67560198,0.00050265,10]
[340129007,1728658248733,-201.7623,0.0005098,120]
[340129008,1728658248742,-258.649703,0.0005098,120]
[340129009,1728658248751,-258.649703,0.0005098,120]
[340129010,1728658248761,-500.050772,0.0005098,14]
[340129011,1728658248771,-500.050772,0.0005098,14]
[340129012,1728658248780,-1000.0,0.00051,120]
[340129013,1728658248790,-300.0,0.00051,120]
[340129014,1728658248799,-150.0,0.00051,85]
[340129015,1728658248809,-5419.359999,0.00051,120]
[340129016,1728658248819,-500.0,0.00051408,10]
[340129017,1728658248828,-500.0,0.00051408,7]
[340129018,1728658248838,-2021.39453926,0.00051546,8]
[340129019,1728658248848,-23851.0014124,0.00051546,8]
[340129020,1728658248857,-275.63715,0.00051556,120]
[340129021,1728658248867,-275.63715,0.00051556,120]
[340129022,1728658248876,-275.63715,0.00051556,120]
[340129023,1728658248886,-275.63715,0.00051556,120]
[340129024,1728658248896,-212.62481,0.00051556,120]
[340129025,1728658248908,-212.62481,0.00051556,120]
[340129026,1728658248918,-695.637677,0.00051556,120]
[340129027,1728658248929,-695.637677,0.00051556,120]
[340129028,1728658248939,-212.62481,0.00051556,120]
[340129029,1728658248949,-212.62481,0.00051556,120]
[340129030,1728658248959,-695.637677,0.00051556,120]
[340129031,1728658248969,-695.637677,0.00051556,120]
[340129032,1728658248979,-151.0,0.00051556,120]
[340129033,1728658248988,-151.0,0.00051556,120]
[340129034,1728658248998,-500.0,0.00051635,10]
[340129035,1728658249008,-500.0,0.00051676,10]
[340129036,1728658249018,-4042.78907852,0.0005168,8]
[340129037,1728658249027,-23851.0014124,0.0005168,8]
[340129038,1728658249036,-275.63715,0.0005169,120]
[340129039,1728658249046,-275.63715,0.0005169,120]
[340129040,1728658249056,-212.62481,0.0005169,120]
[340129041,1728658249066,-695.637677,0.0005169,120]
[340129042,1728658249076,-212.624817,0.0005169,120]
[340129043,1728658249086,-695.637686,0.0005169,120]
[340129044,1728658249097,-151.0,0.0005169,120]
[340129045,1728658249107,-88888.0,0.0005169,120]
[340129046,1728658249119,-2021.39453926,0.0005178,8]
[340129047,1728658249129,-258.649703,0.0005179,120]
[340129048,1728658249138,-258.649703,0.0005179,120]
[340129049,1728658249149,-500.050772,0.0005179,14]
[340129050,1728658249163,-500.050772,0.0005179,14]
[340129051,1728658249173,-258.649703,0.000518,120]
[340129052,1728658249188,-258.649703,0.000518,120]
[340129053,1728658249198,-500.050772,0.000518,14]
[340129054,1728658249207,-500.050772,0.000518,14]
[340129055,1728658249218,-2021.39453926,0.0005186,8]
[340129056,1728658249228,-258.649703,0.0005187,120]
[340129057,1728658249240,-258.649703,0.0005187,120]
[340129058,1728658249251,-500.050772,0.0005187,14]
[340129059,1728658249261,-500.050772,0.0005187,14]
[340129060,1728658249270,-258.649703,0.0005188,120]
[340129061,1728658249281,-258.649695,0.0005188,120]
[340129062,1728658249292,-2021.39453926,0.0005199,8]
[340129063,1728658249302,-1000.0,0.00052,120]
[340129064,1728658249312,-300.0,0.00052,120]
[340129065,1728658249322,-40000.0,0.00052,120]
[340129066,1728658249332,-1633.43,0.00052,30]
[340129067,1728658249344,-500.0,0.00052054,30]
[340129068,1728658249354,-155.9,0.00052103,90]
[340129069,1728658249363,-531.39,0.000526,7]
[340129070,1728658249374,-151.0,0.00052664,90]
[340129071,1728658249383,-153.0,0.0005268,120]
[340129072,1728658249397,-153.0,0.0005268,120]
[340129073,1728658249415,-153.0,0.0005268,120]
[340129074,1728658249428,-153.0,0.0005268,120]
[340129075,1728658249440,-153.0,0.0005268,120]
[340129076,1728658249452,-153.0,0.00052685,120]
[340129077,1728658249465,-153.0,0.00052685,120]
[340129078,1728658249475,-153.0,0.00052685,120]
[340129079,1728658249486,-153.0,0.00052685,120]
[340129080,1728658249497,-153.0,0.00052739,120]
[340129081,1728658249508,-153.0,0.00052739,120]
[340129082,1728658249520,-153.0,0.00052739,120]
[340129083,1728658249533,-153.0,0.00052739,120]
[340129084,1728658249544,-153.0,0.00052739,120]
[340129085,1728658249555,-153.0,0.00052744,120]
[340129086,1728658249567,-153.0,0.00052744,120]
[340129087,1728658249579,-153.0,0.00052744,120]
[340129088,1728658249590,-153.0,0.00052744,120]
[340129089,1728658249603,-153.0,0.00052796,120]
[340129090,1728658249616,-153.0,0.00052796,120]
[340129091,1728658249628,-153.0,0.00052796,120]
[340129092,1728658249642,-153.0,0.00052796,120]
[340129093,1728658249652,-153.0,0.00052796,120]
[340129094,1728658249669,-500.0,0.000528,2]
[340129095,1728658249680,-150.0,0.000528,2]
[340129096,1728658249692,-214.69042876,0.000528,2]
[340129097,1728658249703,-160.0,0.000528,2]
[340129098,1728658249715,-600.0,0.000528,2]
[340129099,1728658249728,-153.0,0.00052801,120]
[340129100,1728658249740,-153.0,0.00052801,120]
[340129101,1728658249752,-153.0,0.00052801,120]
[340129102,1728658249764,-153.0,0.00052801,120]
[340129103,1728658249775,-155.9,0.00052817,90]
[340129104,1728658249787,-153.0,0.00052855,120]
[340129105,1728658249797,-153.0,0.00052855,120]
[340129106,1728658249807,-153.0,0.00052855,120]
[340129107,1728658249818,-153.0,0.00052855,120]
[340129108,1728658249831,-153.0,0.00052855,120]
[340129109,1728658249843,-153.0,0.0005286,120]
[340129110,1728658249856,-153.0,0.0005286,120]
[340129111,1728658249867,-153.0,0.0005286,120]
[340129112,1728658249879,-153.0,0.0005286,120]
[340129113,1728658249890,-9217.4510848,0.00053,120]
[340129114,1728658249902,-150.0,0.00053,120]
[340129115,1728658249918,-5419.36,0.00053,120]
[340129116,1728658249928,-1000.0,0.00053,120]
[340129117,1728658249939,-1570.83631248,0.00053011,2]
[340129118,1728658249952,-179.20443599,0.000533,120]
[340129119,1728658249963,-600.0,0.0005335,2]
[340129120,1728658249976,-317.40461023,0.00053424,35]
[340129121,1728658249987,-155.9,0.0005353,90]
[340129122,1728658249999,-1000.0,0.000538,120]
[340129123,1728658250010,-601.56927212,0.000539,2]
[340129124,1728658250020,-2000.0,0.00054,120]
[340129125,1728658250031,-200.0,0.00054,120]
[340129126,1728658250042,-150.0,0.00054,120]
[340129127,1728658250053,-1000.02650872,0.00054,120]
[340129128,1728658250064,-1570.83631248,0.00054122,2]
[340129129,1728658250076,-1304.56781517,0.00054148,78]
[340129130,1728658250087,-155.9,0.00054244,90]
[340129131,1728658250098,-6367.78042789,0.00054246,120]
[340129132,1728658250110,-380.0,0.00054376,2]
[340129133,1728658250124,-1633.43,0.000544,30]
[340129134,1728658250138,-2021.39453926,0.00054774,8]
[340129135,1728658250150,-500.0,0.00054794,120]
[340129136,1728658250163,-1250.0,0.00054794,120]
[340129137,1728658250176,-1373.39,0.00054794,120]
[340129138,1728658250187,-1373.39,0.00054794,120]
[340129139,1728658250197,-1373.39,0.00054794,120]
[340129140,1728658250209,-1373.39,0.00054794,120]
[340129141,1728658250221,-1373.39,0.00054794,120]
[340129142,1728658250233,-1373.39,0.00054794,120]
[340129143,1728658250249,-1373.39,0.00054794,120]
[340129144,1728658250260,-1373.39,0.00054794,120]
[340129145,1728658250271,-1373.39,0.00054794,120]
[340129146,1728658250283,-1373.39,0.00054794,120]
[340129147,1728658250293,-1373.39,0.00054794,120]
[340129148,1728658250303,-1373.39,0.00054794,120]
[340129149,1728658250316,-1373.39,0.00054794,120]
[340129150,1728658250328,-1373.39,0.00054794,120]
[340129151,1728658250339,-1373.39,0.00054794,120]
[340129152,1728658250350,-1373.39,0.00054794,120]
[340129153,1728658250360,-1373.39,0.00054794,120]
[340129154,1728658250371,-1373.39,0.00054794,120]
[340129155,1728658250382,-1373.39,0.00054794,120]
[340129156,1728658250393,-1373.39,0.00054794,120]
[340129157,1728658250404,-1373.39,0.00054794,120]
[340129158,1728658250419,-1373.39,0.00054794,120]
[340129159,1728658250430,-1373.39,0.00054794,120]
[340129160,1728658250445,-1373.44764398,0.00054794,120]
[340129161,1728658250458,-150.4,0.00054795,30]
[340129162,1728658250470,-2021.39453926,0.00054869,8]
[340129163,1728658250484,-40657.95133101,0.00054879,120]
[340129164,1728658250496,-155.9,0.00054958,120]
[340129165,1728658250509,-2021.39453926,0.0005499,8]
[340129166,1728658250522,-2000.0,0.00055,55]
[340129167,1728658250534,-5000.0,0.00055,70]
[340129168,1728658250549,-14303.0,0.00055,60]
[340129169,1728658250561,-150.0,0.00055,120]
[340129170,1728658250571,-250.0,0.00055,120]
[340129171,1728658250582,-1000.0,0.00055,120]
[340129172,1728658250592,-1570.83631248,0.00055233,2]
[340129173,1728658250602,-151.0,0.00055611,120]
[340129174,1728658250613,-155.9,0.00055672,120]
[340129175,1728658250625,-2000.0,0.00056,120]
[340129176,1728658250639,-150.0,0.00056,120]
[340129177,1728658250652,-879.0299298,0.00056,90]
[340129178,1728658250668,-2500.0,0.00056164,120]
[340129179,1728658250678,-1570.83631248,0.00056344,2]
[340129180,1728658250688,-155.9,0.00056385,120]
[340129181,1728658250700,-1000.0,0.000565,120]
[340129182,1728658250711,-150.112233,0.000567,11]
[340129183,1728658250723,-5000.0,0.000568,120]
[340129184,1728658250734,-15075.0234087,0.00056853,120]
[340129185,1728658250856,-517.39343721,0.0005691,2]
[340129186,1728658250871,-150.22205,0.0005691,2]
[340129187,1728658250883,-150.0,0.00057,120]
[340129188,1728658250895,-1000.0,0.00057,120]
[340129189,1728658250908,-5419.359999,0.00057,120]
[340129190,1728658250920,-155.9,0.00057099,120]
[340129191,1728658250931,-2021.39453926,0.000574,9]
[340129192,1728658250942,-4042.78907852,0.0005741,9]
[340129193,1728658250953,-192368.5654097,0.0005742,2]
[340129194,1728658250964,-1570.83631248,0.00057456,2]
[340129195,1728658250974,-1633.43,0.000575,30]
[340129196,1728658250983,-514.24405153,0.00057534,120]
[340129197,1728658250993,-3750.0,0.00057534,120]
[340129198,1728658251003,-5000.0,0.000578,30]
[340129199,1728658251013,-155.9,0.00057813,120]
[340129200,1728658251023,-571.16338507,0.00057915,2]
[340129201,1728658251034,-40811.35367962,0.00057915,2]
[340129202,1728658251046,-2000.0,0.00058,120]
[340129203,1728658251057,-150.0,0.00058,120]
[340129204,1728658251069,-1609384.01050168,0.000585,38]
[340129205,1728658251078,-44539.00549296,0.000585,38]
[340129206,1728658251088,-155.9,0.00058527,120]
[340129207,1728658251098,-151.0,0.00058557,120]
[340129208,1728658251108,-1570.83631248,0.00058567,2]
[340129209,1728658251119,-41031.13420368,0.000588,120]
[340129210,1728658251129,-300000.000437,0.000588,120]
[340129211,1728658251140,-5000.0,0.00058904,120]
[340129212,1728658251150,-30000.0,0.00059,120]
[340129213,1728658251163,-30000.0,0.00059,60]
[340129214,1728658251173,-150.0,0.00059,120]
[340129215,1728658251184,-150.0,0.00059,14]
[340129216,1728658251193,-380.0,0.00059236,2]
[340129217,1728658251205,-155.9,0.0005924,120]
[340129218,1728658251216,-2015.61645162,0.000595,120]
[340129219,1728658251227,-1570.83631248,0.00059678,2]
[340129220,1728658251241,-40657.95133101,0.0005985,120]
[340129221,1728658251252,-5980630.9903825,0.0005994,120]
[340129222,1728658251263,-216000.0,0.0005995,7]
[340129223,1728658251273,-155.9,0.00059954,120]
[340129224,1728658251283,-250000.0,0.0005996,4]
[340129225,1728658251293,-250000.0,0.0005997,5]
[340129226,1728658251302,-200000.0,0.0005998,6]
[340129227,1728658251313,-210.50572198,0.00059999,120]
[340129228,1728658251323,-436.67859352,0.00059999,120]
[340129229,1728658251333,-426.83650396,0.00059999,31]
[340129230,1728658251343,-436.16067843,0.00059999,120]
[340129231,1728658251353,-379.95887843,0.00059999,120]
[340129232,1728658251363,-374.37611628,0.00059999,120]
[340129233,1728658251373,-321.24909199,0.00059999,120]
[340129234,1728658251382,-500.0,0.00059999,120]
[340129235,1728658251392,-500.0,0.00059999,120]
[340129236,1728658251401,-5000.0,0.0006,65]
[340129237,1728658251416,-2025.21143173,0.0006,120]
[340129238,1728658251427,-500.0,0.0006,120]
[340129239,1728658251441,-515.0,0.0006,7]
[340129240,1728658251451,-250.0,0.0006,120]
[340129241,1728658251461,-150.0,0.0006,120]
[340129242,1728658251470,-122588.60110939,0.0006,120]
[340129245,1728658424353,0.00847301,0.00029,2]
[340129246,1728658432152,4440.0,0.00028007,2]
[340129248,1728658556642,159.588179,0.00026986,2]
[340129249,1728658606788,1820.25061679,0.00028,2]
[340129250,1728658615427,1567.73518563,0.00028,2]
[340129251,1728658989991,302.8183302,0.00035,2]
[340129253,1728659167112,209.14,0.00035,120]
[340129265,1728659372246,445.89305115,0.00035,2]
[340129266,1728659381637,10286.28941849,0.00035,2]
[340129269,1728659416458,-150.0,0.000391,2]
[340129270,1728659416488,-510.002841,0.00041001,2]
[340129271,1728659416519,-510.002841,0.00041686,2]
[340129272,1728659416552,-510.002841,0.00042371,2]
[340129273,1728659416584,-160.0,0.00044658,2]
[340129274,1728659416617,-304.0,0.00044658,2]
[340129275,1728659416655,-769.94592338,0.00047407,120]
[340129276,1728659416687,-550.0,0.00047505,30]
[340129277,1728659416720,-550.0,0.00047505,5]
[340129278,1728659416749,-300.0,0.00047507,30]
[340129279,1728659416791,-222.736,0.00047507,30]
[340129280,1728659416820,-304.0,0.00049517,2]
[340129281,1728659416850,-2156.43452663,0.000499,28]
[340129282,1728659416888,-44505.9541905,0.0005,60]
[340129283,1728659416920,-10000.0,0.0005,30]
[340129284,1728659416952,-400.0,0.00050276,15]
[340129285,1728659416985,-154.43334356,0.00052003,85]
[340129286,1728659417019,-2156.43452663,0.00052707,28]
[340129287,1728659417049,-384.44,0.000529,7]
[340129288,1728659417077,-769.94592335,0.00052943,120]
[340129289,1728659417103,-160.0,0.00053051,2]
[340129290,1728659417131,-304.0,0.00054376,2]
[340129291,1728659417163,-1250.0,0.00054794,120]